Cogmind - Beta 11 @@@ ROGUE MODE // 2022.03.29 @ 01:17:32 Player: Ahren Result: Destroyed by 8R-AWN with 8R-AWN's Boregun Performance ------------- Evolutions (1) 500 Regions Visited (4) 800 Robots Destroyed (89) 445 Value Destroyed (1624) 1624 Prototype IDs (4) 80 Alien Tech Used (0) 0 Bonus (157) 157 TOTAL SCORE: 3606 Bonus ------- High Alert Combat Kills 157 Cogmind --------- Core Integrity 0/400 Matter 46/300 Energy 46/100 System Corruption 14% Temperature Critical (583) Movement Core (750) Ox14 Location -9/Exiles Parts ------- > --- POWER (1) -------- (None) > --- PROPULSION (2) --- (None) > --- UTILITY (3) ------ Large Storage Unit Hardened Medium Armor Plating > --- WEAPON (3) ------- Heavy Particle Cannon Heavy Particle Cannon Rocket Launcher > --- INVENTORY (15) --- Cooling System High-capacity Storage Unit Hardened Medium Armor Plating EMP Blaster Rocket Launcher Peak State ------------ > --- POWER ------------ Heavy Ion Engine > --- PROPULSION ------- Light Treads Improved Treads > --- UTILITY ---------- Improved Heat Sink Large Storage Unit Hardened Medium Armor Plating > --- WEAPON ----------- Heavy Particle Cannon Heavy Particle Cannon Heavy Particle Cannon > --- INVENTORY -------- Heavy Ion Engine Light Treads Improved Heat Sink Cooling System High-capacity Storage Unit Hardened Medium Armor Plating Hardened Medium Armor Plating Heavy Particle Cannon EMP Blaster EMP Blaster Rocket Launcher Rocket Launcher [Rating: 24] Favorites ----------- Power Heavy Ion Engine Engine Heavy Ion Engine Power Core Light Nuclear Core Propulsion Light Treads Treads Light Treads Wheel Compact Wheel Utility Large Storage Unit Device Improved Heat Sink Storage Large Storage Unit Processor Transport Network Coupler Protection Light Armor Plating Weapon Heavy Particle Cannon Energy Gun Improved Medium Laser Energy Cannon Heavy Particle Cannon Ballistic Gun Heavy Assault Rifle Launcher EMP Blaster Build | -11 -10 -9 -9 -9 ------- Run | Scr Mat Mat Min Exi Slots Evolved 2 | . . 2 . . Power . | . . . . . Propulsion . | . . . . . Utility 1 | . . 1 . . Weapon 1 | . . 1 . . Parts Attached 81 | 11 3 47 6 14 Power 8 | 1 1 5 . 1 Engine 7 | 1 1 4 . 1 Core 1 | . . 1 . . Reactor . | . . . . . Propulsion 19 | 5 1 10 1 2 Treads 7 | . . 4 1 2 Leg . | . . . . . Wheel 12 | 5 1 6 . . Hover . | . . . . . Flight . | . . . . . Utility 20 | 3 1 10 2 4 Device 9 | 2 . 4 2 1 Storage 5 | 1 . 4 . . Processor 2 | . 1 1 . . Hackware . | . . . . . Protection 4 | . . 1 . 3 Artifact . | . . . . . Weapon 34 | 2 . 22 3 7 Energy Gun 14 | 1 . 13 . . Energy Cannon 6 | . . . 3 3 Ballistic Gun 9 | 1 . 8 . . Ballistic Cannon . | . . . . . Launcher 5 | . . 1 . 4 Special Weapon . | . . . . . Impact Weapon . | . . . . . Slashing Weapon . | . . . . . Piercing Weapon . | . . . . . Special Melee Weapon . | . . . . . Unidentified Prototypes 2 | . . 2 . . Parts Lost 23 | . . 11 . 12 Power 3 | . . 1 . 2 Propulsion 5 | . . 2 . 3 Utility 6 | . . 2 . 4 Weapon 9 | . . 6 . 3 Highest Loss Streak 7 | . . 4 . 7 To Critical Strikes 3 | . . . . 3 Average Slot Usage (%) 97 | . 100 96 100 96 Engine 9 | . 14 7 11 11 Core 1 | . . 3 . . Treads 13 | . . 7 22 20 Wheel 8 | . 28 14 . . Device 8 | . 8 7 9 9 Storage 11 | . 14 11 11 11 Processor 5 | . 6 10 1 . Protection 5 | . . 1 11 11 Energy Gun 5 | . 14 8 . . Energy Cannon 13 | . . . 27 31 Ballistic Gun 13 | . 14 22 5 . Naked Turns . | . . . . . Heaviest Build 55 | 14 14 40 50 55 Greatest Support 43 | 32 20 43 43 43 Greatest Overweight (x) 2 | 2 . 1 1 2 Average Overweight (x) . | . . . . 1 Largest Inventory Capacity 15 | 8 8 15 15 15 Average Capacity 13 | 7 8 13 15 15 Most Carried 15 | 8 8 15 15 13 Average Carried 11 | 5 7 11 12 12 Final Capacity 15 | 8 8 15 15 15 Final Carried 15 | 8 7 15 13 5 Class Distribution -------------------- 36% | Tank 25% | Scavenger-Skirmisher 13% | Scavenger-Tank 9% | Mutant 5% | Scavenger-Mutant 5% | Gunner 4% | Skirmisher Dominant Class ---------------- Mutant | -10/Materials Scavenger-Skirmisher | -9/Materials Tank | -9/Mines Tank | -9/Exiles Resources | -11 -10 -9 -9 -9 ----------- Run | Scr Mat Mat Min Exi Matter Collected 1801 | 362 100 1116 223 . Remotely . | . . . . . Salvage Created 3159 | 169 126 2490 226 148 Parts 199 | 12 9 152 7 19 Haulers Intercepted 7 | . 1 6 . . Recyclers Shooed 2 | . . 2 . . Parts Field Recycled . | . . . . . Retrieved Matter . | . . . . . Parts Self-Destructed . | . . . . . Prevented . | . . . . . Kills | -11 -10 -9 -9 -9 ------- Run | Scr Mat Mat Min Exi Combat Hostiles Destroyed 51 | . 4 36 5 6 Guns 39 | . 4 32 3 . Cannons 3 | . . . 2 1 AOE 8 | . . 4 . 4 Classes Destroyed 16 | 3 3 8 . 2 Worker 8 | 1 . 7 . . Builder 7 | . . 7 . . Tunneler 5 | 3 . 2 . . Hauler 7 | . 1 6 . . Recycler 6 | 1 . 5 . . Mechanic 1 | . . 1 . . Operator 2 | . . 2 . . Watcher 5 | . . 5 . . Swarmer 13 | . 3 10 . . Grunt 24 | . 1 19 4 . Brawler 2 | . . 1 1 . Duelist 1 | . . 1 . . Protector 1 | . . 1 . . Sentry 4 | . . 4 . . Zionite 1 | . . . . 1 Assembled 6 | . . . . 6 Best Kill Streak 12 | 2 3 12 3 6 Combat Bots Only 5 | . 3 4 3 5 Max Kills in Single Turn 3 | 1 1 3 2 2 Gunslinging . | . . . . . Exploded 3 | . . 3 . 2 Melee . | . . . . . Uniques/NPCs Destroyed 2 | . . . . 2 EX-BIN (-9/Exiles) EX-HEX (-9/Exiles) Combat | -11 -10 -9 -9 -9 -------- Run | Scr Mat Mat Min Exi Damage Taken 3563 | . 203 1383 283 1694 Core 442 | . 29 211 18 184 Absorbed by Shields . | . . . . . Regen/Repaired (Parts) 174 | . . 174 . . Core Remaining (%) 94 | 100 88 . . . Volleys Fired 217 | 19 24 136 13 25 Largest 3 | 2 2 3 3 3 Hottest 225 | 60 60 168 225 225 Shots Fired 510 | 38 48 350 40 34 Gun 463 | 38 48 347 30 . Cannon 34 | . . . 10 24 Launcher 13 | . . 3 . 10 Special . | . . . . . Kinetic 280 | 19 24 207 30 . Thermal 165 | 19 24 88 10 24 Explosive 6 | . . 3 . 3 Electromagnetic 59 | . . 52 . 7 Robot Hit Streak 12 | 5 5 12 6 3 Robot Miss Streak 7 | 3 7 5 4 6 Penetration Max . | . . . . . Secondary Targets 6 | . 1 5 . . Max Gunslinging Chain 1 | . 1 1 . . Shots Hit Robots 283 | 21 21 202 23 16 Core Hits 134 | 6 8 97 7 16 Critical Kills 1 | . . 1 . . Critical Parts Destroyed 3 | . 1 . 2 . Critical Strikes 8 | . 1 5 2 . Burn 2 | . . 2 . . Destroy 4 | . 1 1 2 . Corrupt 2 | . . 2 . . Melee Attacks . | . . . . . Impact . | . . . . . Slashing . | . . . . . Piercing . | . . . . . Sneak Attacks . | . . . . . Combat Hostiles . | . . . . . Follow-up Attacks . | . . . . . Damage Inflicted 4984 | 247 323 3323 474 617 Guns 4009 | 247 323 3115 324 . Cannons 387 | . . . 150 237 Explosions 588 | . . 208 . 380 Melee . | . . . . . Ramming . | . . . . . Kinetic 2355 | 102 172 1757 324 . Thermal 1564 | 145 151 830 150 288 Explosive 224 | . . 169 . 55 Electromagnetic 841 | . . 567 . 274 Impact . | . . . . . Slashing . | . . . . . Piercing . | . . . . . Highest Corruption 14 | . . 4 4 14 Average Corruption 4 | . . 4 4 5 Corruption Purged . | . . . . . Corruption Blocked . | . . . . . Effects 78 | . . 33 29 16 Message Errors 20 | . . 10 6 4 Matter Fused 19 | . . 7 8 4 Heat Flow Errors 7 | . . 3 2 2 Energy Discharges 8 | . . 3 4 1 Parts Rejected 1 | . . . . 1 Data Loss (minor) 9 | . . 4 5 . Data Loss (major) 5 | . . 1 3 1 Misfires 5 | . . 3 1 1 Weapon Failures 4 | . . 2 . 2 Overload Shots . | . . . . . Overflow Damage 68 | . . 38 . 30 Projectiles 24 | . . . . 24 Explosions 44 | . . 38 . 6 Melee . | . . . . . Knockbacks . | . . . . . Impact . | . . . . . Kinetic . | . . . . . Secondary . | . . . . . Self-Inflicted Damage 150 | . . 90 . 60 Shots 8 | . . 3 . 5 Rammed . | . . . . . Targets Rammed . | . . . . . Kicked . | . . . . . Crushed . | . . . . . Highest Temperature 751 | 20 42 368 411 751 Average Temperature 137 | 20 24 113 106 315 Received Heat Transfer 596 | . 54 393 69 80 Effects 25 | . . 5 . 20 Shutdowns 4 | . . 1 . 3 Energy Bleed 1 | . . . . 1 Interference 8 | . . 4 . 4 Matter Decay 3 | . . . . 3 Short Circuit 2 | . . . . 2 Damage (minor) 1 | . . . . 1 Damage (major) 6 | . . . . 6 Siege Activations . | . . . . . Robots Corrupted 1 | . . . . 1 Combat Hostiles 1 | . . . . 1 Parts Fried 3 | . . 3 . . Impact Corruptions . | . . . . . Robots Melted . | . . . . . Combat Hostiles . | . . . . . Parts Melted 7 | . . 5 . 2 Heat Transferred 3229 | 325 350 1945 222 387 Parts Sabotaged . | . . . . . Parts Stolen . | . . . . . Parts Stripped . | . . . . . Power Chain Reactions 2 | . . 1 . 1 Missiles Intercepted . | . . . . . Alert | -11 -10 -9 -9 -9 ------- Run | Scr Mat Mat Min Exi Peak Influence 737 | 25 153 737 332 . Initial 262 | . 16 64 262 . Average 295 | 11 91 438 160 . Maximum Alert Level 3 | . . 3 1 . Low Security (%) 36 | 100 100 11 52 . Level 1 36 | . . 36 47 . Level 2 20 | . . 38 . . Level 3 6 | . . 12 . . Level 4 . | . . . . . Level 5 . | . . . . . High Security . | . . . . . Max Security . | . . . . . Squads Dispatched 8 | . 2 6 . . Investigation 3 | . 1 2 . . Extermination . | . . . . . Reinforcement 4 | . 1 3 . . Assault 1 | . . 1 . . Garrison . | . . . . . Intercept . | . . . . . Searches Triggered . | . . . . . Construction Impeded 1 | . . 1 . . Haulers Reinforced . | . . . . . Active Scanning Responses . | . . . . . Cargo Convoy Interrupts . | . . . . . Stealth | -11 -10 -9 -9 -9 --------- Run | Scr Mat Mat Min Exi Distress Signals 1 | . 1 . . . Communications Jammed . | . . . . . Distress Signals . | . . . . . Times Spotted 88 | . 12 48 5 23 Peak Tracking Total 18 | . 5 5 3 18 Tactical Retreats 5 | . . 2 . 3 Traps | -11 -10 -9 -9 -9 ------- Run | Scr Mat Mat Min Exi Traps Triggered 2 | . 1 1 . . Indirectly . | . . . . . Trap Hack Attempts . | . . . . . Triggered . | . . . . . Disarmed . | . . . . . Reprogrammed . | . . . . . Reused . | . . . . . Traps Extracted . | . . . . . Installed . | . . . . . Triggered . | . . . . . Machines | -11 -10 -9 -9 -9 ---------- Run | Scr Mat Mat Min Exi Machines Disabled 11 | . 1 3 1 6 Max in Single Turn 1 | . 1 1 1 1 Machines Sabotaged . | . . . . . Garrisons Compromised . | . . . . . Overloaded Fab Kills . | . . . . . Hacking | -11 -10 -9 -9 -9 --------- Run | Scr Mat Mat Min Exi Machines Accessed 13 | . 3 10 . . Terminals 7 | . 2 5 . . Fabricators . | . . . . . Repair Stations 2 | . . 2 . . Recycling Units 3 | . 1 2 . . Scanalyzers 1 | . . 1 . . Garrison Access . | . . . . . Total Hacks 33 | . 5 28 . . Successful 23 | . 2 21 . . Failed 10 | . 3 7 . . Catastrophic . | . . . . . Database Lockouts . | . . . . . Manual 2 | . . 2 . . Terminals 15 | . 3 12 . . Fabricators . | . . . . . Repair Stations 8 | . . 8 . . Recycling Units 5 | . 2 3 . . Scanalyzers 5 | . . 5 . . Garrison Access . | . . . . . Terminal Hacks 8 | . 2 6 . . Record 1 | . . 1 . . Prototype ID Bank 2 | . . 2 . . Alert Level 2 | . 1 1 . . Locate Traps 1 | . 1 . . . Maintenance Status 1 | . . 1 . . Hauler Manifests 1 | . . 1 . . Fabricator Hacks . | . . . . . Repair Station Hacks 8 | . . 8 . . Scan Component 4 | . . 4 . . Repair 4 | . . 4 . . Recycling Unit Hacks 2 | . . 2 . . Report Inventory 2 | . . 2 . . Scanalyzer 5 | . . 5 . . Insert Component 3 | . . 3 . . Analyze 2 | . . 2 . . Garrison Access Hacks . | . . . . . Unauthorized Hacks . | . . . . . Terminals . | . . . . . Fabricators . | . . . . . Repair Stations . | . . . . . Recycling Units . | . . . . . Scanalyzers . | . . . . . Garrison Access . | . . . . . Data Cores Recovered . | . . . . . Used . | . . . . . Hacking Detections 11 | . 2 9 . . Full Trace Events . | . . . . . Feedback Events . | . . . . . Feedback Blocked . | . . . . . Robot Schematics Acquired . | . . . . . Robots Built . | . . . . . Authchips . | . . . . . Time . | . . . . . Total Robot Build Rating . | . . . . . Part Schematics Acquired 2 | . . 2 . . Parts Built . | . . . . . Authchips . | . . . . . Time . | . . . . . Total Part Build Rating . | . . . . . Parts Repaired 4 | . . 4 . . Time 135 | . . 135 . . Parts Recycled . | . . . . . Recycled Matter . | . . . . . Retrieved Matter . | . . . . . Retrieved Components . | . . . . . Parts Scanalyzed 2 | . . 2 . . Part Schematics Acquired 2 | . . 2 . . Parts Damaged . | . . . . . Bothacking | -11 -10 -9 -9 -9 ------------ Run | Scr Mat Mat Min Exi Used RIF Installer . | . . . . . Robots Hacked . | . . . . . Non-combat . | . . . . . Combat . | . . . . . Robot Hacks Applied . | . . . . . Relay Couplers Released . | . . . . . Fabnet Peak Effective % . | . . . . . Robots Rewired . | . . . . . Allies Hacked . | . . . . . Hacks Repelled . | . . . . . Allies | -11 -10 -9 -9 -9 -------- Run | Scr Mat Mat Min Exi Total Allies . | . . . . . Largest Group . | . . . . . Highest-Rated Group . | . . . . . Highest-Rated Ally . | . . . . . Total Orders . | . . . . . Ally Attacks . | . . . . . Total Damage . | . . . . . Kills . | . . . . . Allies Corrupted . | . . . . . Allies Melted . | . . . . . Intel | -11 -10 -9 -9 -9 ------- Run | Scr Mat Mat Min Exi Robot Analysis Total . | . . . . . Derelict Logs Recovered 3 | . . . 3 . Drone Launches . | . . . . . Drone Recoveries . | . . . . . Exploration | -11 -10 -9 -9 -9 ------------- Run | Scr Mat Mat Min Exi Turns Passed 4374 | 248 210 2032 1322 562 Spaces Moved 2236 | 186 146 1151 553 200 Core 8 | 8 . . . . Treads 1088 | . . 335 553 200 Legs . | . . . . . Wheels 1140 | 178 146 816 . . Hover . | . . . . . Flight . | . . . . . Fastest Speed 50 | 50 80 80 160 240 Average Speed 153 | 87 80 123 226 240 Slowest Speed 320 | 150 80 240 240 320 Overloaded Moves . | . . . . . Propulsion Burnouts . | . . . . . Robots Hopped . | . . . . . Cave-ins Triggered . | . . . . . Exploration Rate (%) 57 | 9 37 79 99 64 Regions Visited 4 Branch Regions 2 Pre-discovered Areas 2 | . . . 2 . Known Exits Taken 2 | . . 1 1 . Unknown Exits Taken 2 | 1 1 . . . Scrap Searched 1 | . . . 1 . Spaces Dug . | . . . . . Terrain Destroyed 25 | . . 15 1 9 Melee . | . . . . . Projectile 2 | . . . 1 1 AOE 23 | . . 15 . 8 Terrain Rammed . | . . . . . Walls Destroyed . | . . . . . Machines Disabled . | . . . . . Actions | -11 -10 -9 -9 -9 --------- Run | Scr Mat Mat Min Exi Total 2745 | 231 190 1485 596 243 Wait 107 | 1 15 69 18 4 Move 2232 | 185 145 1150 552 200 Hop . | . . . . . Pick Up 55 | 10 . 43 2 . Fast Attach 29 | 8 1 19 . 1 Attach 19 | . . 11 . 8 Detach 3 | . . 3 . . Swap 33 | 3 2 17 6 5 Drop 50 | 5 3 37 5 . Fire 217 | 19 24 136 13 25 Melee . | . . . . . Ram . | . . . . . Kick . | . . . . . Crush . | . . . . . Escape Stasis . | . . . . . Rewire . | . . . . . Trap . | . . . . . Miscellaneous . | . . . . . Route ------- -11/Scrapyard -10/Materials -9/Materials (discovered 3 exits: *Mat x2 / *Min) -9/Mines (discovered 3 exits: *Mat x2 / *Exi) -9/Exiles (discovered 1 exit: [*Min]) History --------- Turn | Location | Event 17 | -11/Scrapyard | Discovered new exit (range 16) 249 | -11/Scrapyard | Entered Materials 307 | -10/Materials | Build established: Mutant 429 | -10/Materials | Discovered new exit (range 16) 459 | -10/Materials | Entered another Materials area 459 | -9/Materials | Evolved 2 slots: Utility x1, Weapon x1 732 | -9/Materials | Repaired Com. Wheel 773 | -9/Materials | Discovered new exit (range 15) 1178 | -9/Materials | Build established: Scavenger-Skirmisher 1539 | -9/Materials | Lost 4 parts (1u3w) 1661 | -9/Materials | Repaired Rocket Launcher 1727 | -9/Materials | Repaired Hvy. Ion Engine 1755 | -9/Materials | Repaired Lrg. Storage Unit 2059 | -9/Materials | First assault squad dispatched 2114 | -9/Materials | Core integrity fell below 50% 2360 | -9/Materials | Discovered new exit (range 16) 2386 | -9/Materials | Identified exit to Materials 2430 | -9/Materials | Build established: Scavenger-Tank 2474 | -9/Materials | Discovered new exit (range 6) 2480 | -9/Materials | Identified exit to Mines 2491 | -9/Materials | Entered Mines 2498 | -9/Mines | Received a Rocket Launcher from a helpful Derelict 2550 | -9/Mines | Deemed a non-threat by the Exiles lab entrance 2550 | -9/Mines | Discovered new exit (range 5) 2554 | -9/Mines | Identified exit to Exiles 2583 | -9/Mines | Discovered exit to Materials (range 10) 2739 | -9/Mines | Learned 2 Materials zone layouts 2770 | -9/Mines | A weapon hastily lodged in a ceiling crevice suddenly fell to the ground 2907 | -9/Mines | Learned location of Storage (-7) 3009 | -9/Mines | Build established: Tank 3050 | -9/Mines | Learned 2 Materials zone layouts 3267 | -9/Mines | Discovered exit to Materials (range 7) 3813 | -9/Mines | Entered Exiles 3847 | -9/Exiles | Discovered new exit (range 15) 3897 | -9/Exiles | Met 8R-AWN 3941 | -9/Exiles | Met EX-HEX 4034 | -9/Exiles | Met EX-DEC 4126 | -9/Exiles | Visited The Gauntlet 4254 | -9/Exiles | Attacked by the Exiles 4294 | -9/Exiles | System corruption reached 10% 4309 | -9/Exiles | Core integrity fell below 20% 4350 | -9/Exiles | Lost 7 parts (1p2n2u2w) 4350 | -9/Exiles | Destroyed EX-BIN 4365 | -9/Exiles | Destroyed EX-HEX 4375 | -9/Exiles | Destroyed by 8R-AWN with 8R-AWN's Boregun Last Messages --------------- 04368_ Penetrated by HV Slug. 04368_ HV Slug penetrates Wall. 04368_ Penetrated by HV Slug. 04368_ HV Slug penetrates Wall. 04369_ System corrupted: Rocket Launcher failed to launch. 04371_ Rocket Launcher broken. 04371_ Overheating: Short circuit. 04371_ Penetrated by HV Slug. 04371_ HV Slug penetrates Wall. 04371_ Penetrated by HV Slug. 04371_ Hvy. Ion Engine destroyed. 04371_ HV Slug penetrates Wall. 04373_ HV Slug penetrates Testing Apparatus. 04373_ Penetrated by HV Slug. 04373_ Critical hit (Destroy). 04373_ HV Slug penetrates Wall. 04374_ Wall collapses. 04375_ Penetrated by HV Slug. 04375_ HV Slug penetrates Testing Chamber Shield. 04375_ Penetrated by HV Slug. Map ----- +----------------------------------------------------+ | ??????????????????????????????##"" | | ???????????????????????????????#"""" | | ???????????????????????????????## | | ????????????????????????????????#" | | ????????????????????????????????#"""" | | ????????????????????????????????#"" | | ????????????????????????????????#" """ | | ????????????????????????????????#""" "" | | ????????????????????????????????## "" | | ?????????????????????????????????#"" """# | | ?????????????????????????????????##""" ## | | ??????????????????????????????????##"""" ##? | | ???????????????????????????????????### #?? | | ?????????????????????????????????????##### ##?? | | ?????????????????????????????????????????## #??? | | ??????????????????????????????????????????# #??? | | ??????????????????????????????????????????# #??? | | ??????????????????????????????????????????# #??? | | ???????????#####???????#####??????????????# #??? | | ?????????#"""""""#????""""""#??#"""""?????# #??? | | ??????????"" ""???#"""""""#???""""""????# #??? | | ?????????#" "#??"""""" "#???" """"???# #??? | | ??????????"" ""#""#""" """#???"" """???# #??? | | ??????????"" ""#""#"" ""????"" ""???# #??? | | ????########""";;; ;;#"""#### "###### #### | | ????#"""" "" """" %@ = " " """" | | ????#" """" " % g | | ????#""" a % | | ????#"""" % %!= | | ????#"" = | | ????#""" "" " | | ????#"" """ """" " """"" """" "" | | ????########"""########"""###""## """ #######"""## | | ??????????"" ""????"" ""#""#"" ""?????? "" | | ?????????#""" """???#""" ""#""#""" ""#????? """ | | ?????????#" """ "#??#" """"""""#" " "#?????""""" | | ??????????"""""""????"""""""????"""""""#????? """? | | ??????????"""""""????""""""?????"""""""#?????""??? | | ??????????????????????????????????####???????????? | | ?????????????????????????????????????????????????? | | ?????????????????????????????????????????????????? | | ?????????????????????????????????????????????????? | | ?????????????????????????????????????????????????? | | | | | | | | | | | | | | | +----------------------------------------------------+ Best States ------------- Heat Dissipation 48 Energy Generation 14 Energy Capacity 280 Matter Stores 300 Matter Capacity 300 Sight Range 16 Terrain Scan Range 16 Terrain Scan Density 10 Armor Coverage 450 Evasion (%) 44 Recoil Reduction 2 Item Schematics ----------------- Com. Wheel | -9/Materials | Scanalyzed Aluminum Leg | -9/Materials | Scanalyzed Robot Schematics ------------------ None Fabricated ------------ Nothing Alien Tech Used ----------------- None Achievements -------------- Power Corrupts Significant Disruption Challenges ------------ None Game ------ Seed MachineParticleReactor Manual? 0 Play Time 00:56:20 Cumulative 16.2 hours Start 2022.03.29 @ 00:21:44 End 2022.03.29 @ 01:17:32 Sessions 1 Manual Loads 0 Difficulty Rogue Special Mode None Game No. 14 Rogue 14 Adventurer 0 Explorer 0 Win Type - Total 0 Types 0/0/0/0/0/0/0/0/0 Lore% 18 Gallery% 23 Achievement% 20 Wizard Run 0 Options --------- ASCII 0 Keyboard 0 Movement Numpad Keybinds 0 Fullscreen 2 Font 24/Smallcaps Map View 76x50 Tactical HUD 1 Map Filters NONE Filters NONE Steam 1 RUN: e010722a-b51b-4a68-9209-e68665bf3828